bitfinex-derivatives/quotes_SOLF0:USTF0_20250709
["timestamp","ask_amount","ask_price","bid_price","bid_amount"]
[1752035973150,9.0963113,151.02,150.99,2.4755113]
[1752035973652,6.6208,151.02,150.99,2.4755113]
[1752035974756,2.4755113,151.03,150.99,2.4755113]
[1752035975356,6.6207,151.02,150.99,2.4755113]
[1752035978352,6.6211,151.01,150.99,2.4755113]
[1752035978658,2.4755113,151.03,150.99,9.0974113]
[1752035978858,14.88771512,151.02,150.99,9.0974113]
[1752035979056,6.6209,151.02,150.99,9.0974113]
[1752035980859,6.6211,151.01,150.98,9.0978113]
[1752035981158,2.4755113,151.02,150.98,9.0978113]
[1752035981656,9.0964113,151.02,150.99,6.6219]
[1752035981856,6.6209,151.02,150.99,9.0974113]
[1752035983359,6.6209,151.02,151.0,2.4755113]
[1752035987765,6.6209,151.02,150.99,6.6219]
[1752035987964,6.6209,151.02,151.0,2.4755113]
[1752035994768,6.6211,151.01,150.99,2.4755113]
[1752035995275,2.4755113,151.03,150.99,2.4755113]
[1752035995474,14.88925789,151.02,150.99,2.4755113]
[1752035995772,6.621,151.02,150.99,2.4755113]
[1752035997275,8.26771785,151.01,151.0,4.1369706]
[1752035997570,2.4755113,151.03,151.0,4.1369706]
[1752035997770,8.2678835,151.02,151.01,4.13693868]
[1752035998577,14.8886835,151.02,151.01,4.13693868]
[1752035999279,8.2678835,151.02,151.01,4.13693868]
[1752036001279,8.2678835,151.02,151.0,2.4755113]
[1752036001469,6.6205,151.03,151.0,2.4755113]
[1752036001674,8.27922668,151.02,151.0,2.4755113]
[1752036001878,6.6677972,151.03,151.0,2.4755113]
[1752036002073,8.27922668,151.02,151.01,3.60490139]
[1752036010378,8.27922668,151.02,151.01,6.08041269]
[1752036011290,8.27922668,151.02,151.01,3.60490139]
[1752036011487,8.27922668,151.02,151.01,6.08041269]
[1752036011681,8.27922668,151.02,151.01,6.08100482]
[1752036011885,8.27922668,151.02,151.01,3.60549352]
[1752036013287,8.27922668,151.02,151.01,10.22659352]
[1752036013488,8.27922668,151.02,151.01,6.08100482]
[1752036013684,0.0472972,151.03,151.01,3.60549352]
[1752036013884,0.0472972,151.03,151.02,6.08100482]
[1752036014592,2.4755113,151.08,151.02,6.08100482]
[1752036014792,8.27733884,151.07,151.05,2.4755113]
[1752036014998,6.6188,151.07,151.06,3.60549352]
[1752036015292,14.89613884,151.07,151.06,3.60549352]
[1752036018092,13.79048771,151.12,151.06,6.08100482]
[1752036018292,10.74070468,151.11,151.08,2.4755113]
[1752036018488,8.26519338,151.1,151.09,6.08100482]
[1752036018692,13.6520113,151.12,151.09,6.08100482]
[1752036018991,8.26631209,151.11,151.1,3.60549352]
[1752036019195,8.26631209,151.11,151.1,3.59508783]
[1752036019388,2.4755113,151.13,151.1,3.59508783]
[1752036019590,8.26043714,151.12,151.11,3.59508783]
[1752036019786,4.4815,151.16,151.11,6.07059913]
[1752036019990,10.73766846,151.15,151.12,6.07059913]
[1752036020187,2.4755113,151.15,151.13,3.59508783]
[1752036020384,2.4755113,151.14,151.1,2.4755113]
[1752036020589,2.4755113,151.13,151.12,0.04748566]
[1752036021196,4.4815,151.16,151.12,0.04748566]
[1752036021197,2.4755113,151.14,151.12,0.04748566]
[1752036021898,6.6158,151.13,151.12,0.04748566]
[1752036037811,4.4815,151.16,151.05,2.3888]
[1752036037812,6.6167,151.11,151.07,3.85183739]
[1752036038510,6.6167,151.11,151.08,6.6179]
[1752036040607,6.6184,151.08,151.05,2.3888]
[1752036040813,3.85183739,151.12,150.98,13.2447]
[1752036041006,4.3965,151.11,151.04,3.85183739]
[1752036041200,3.85183739,151.1,150.99,574.1771]
[1752036041413,3.85183739,151.08,151.02,3.85183739]
[1752036041807,6.6195,151.05,151.02,3.85183739]
[1752036042012,3.85183739,151.08,151.01,6.6208]
[1752036042207,6.6196,151.05,151.01,10.47263739]
[1752036042605,6.6196,151.05,151.02,6.6205]
[1752036046306,3.85183739,151.09,151.03,3.85183739]
[1752036046610,8.24833739,151.11,151.03,3.85183739]
[1752036047013,6.6177,151.09,151.05,6.619]
[1752036047808,6.6181,151.08,151.05,6.619]
[1752036054616,6.6178,151.09,151.05,6.619]
[1752036055113,6.618,151.08,151.05,10.47083739]
[1752036055315,8.24833739,151.11,151.05,10.47083739]
[1752036055516,8.24833739,151.11,151.06,6.6187]
[1752036056012,4.3965,151.11,151.05,3.85183739]
[1752036057616,6.6178,151.09,151.06,6.6187]
[1752036058918,6.6178,151.09,151.05,3.85183739]
[1752036058919,6.6178,151.09,151.05,10.47093739]
[1752036060825,6.6178,151.09,151.06,2.46639365]
[1752036061125,6.6181,151.08,151.06,2.46639365]
[1752036062023,6.6181,151.08,151.07,2.46639365]
[1752036063227,6.6177,151.09,151.07,2.46639365]
[1752036065024,6.6177,151.09,151.08,2.46639365]
[1752036065932,2.46639365,151.12,151.08,2.46639365]
[1752036066124,2.2935,151.15,151.08,2.46639365]
[1752036066330,11.54759546,151.14,150.99,64.3371]
[1752036066526,2.2935,151.15,151.1,2.46639365]
[1752036066732,10.77673412,151.14,151.1,2.46639365]
[1752036067030,2.50964824,151.14,151.1,2.46639365]
[1752036067232,0.04325459,151.14,150.99,64.3371]
[1752036067433,2.50964824,151.14,151.1,2.50896327]
[1752036067632,2.46639365,151.14,151.1,2.46639365]
[1752036068131,6.6161,151.13,151.1,2.46639365]
[1752036068432,4.75989365,151.15,151.11,2.46639365]
[1752036068930,6.6157,151.14,151.1,6.617]
[1752036069135,2.2935,151.15,151.08,3.85141179]
[1752036069328,8.31068846,151.14,151.08,3.85141179]
[1752036069630,6.6161,151.13,151.08,3.85141179]
[1752036070133,6.6158,151.13,151.08,10.46911179]
[1752036070332,2.2935,151.15,151.08,10.46911179]
[1752036070532,8.32890721,151.14,151.08,10.46911179]
[1752036070732,6.6158,151.13,151.08,10.46911179]
[1752036071332,6.6163,151.12,151.08,10.46911179]
[1752036078236,6.6163,151.12,151.09,6.6174]
[1752036081639,6.6163,151.12,151.09,10.46881179]
[1752036085142,7.09680634,151.14,151.06,3.85141179]
[1752036085338,12.1661706,151.13,151.05,3.85348596]
[1752036085538,12.16619181,151.12,151.05,3.85350717]
[1752036085734,12.16619181,151.12,151.06,6.6186]
[1752036085735,6.6175,151.1,151.06,6.6186]
[1752036086242,6.6175,151.1,151.06,6.6187]
[1752036087441,6.6175,151.1,151.07,6.6184]
[1752036087743,6.6176,151.09,151.05,3.85350717]
[1752036087947,6.6176,151.09,151.05,10.47240717]
[1752036088340,6.6176,151.09,151.05,3.85350717]
[1752036089548,6.6176,151.09,151.06,6.6188]
[1752036090847,6.6176,151.09,151.07,2.4661854]
[1752036093545,6.6179,151.09,151.05,6.6191]
[1752036093748,2.4661854,151.1,151.05,6.6191]
[1752036094051,2.4661854,151.1,151.06,2.4661854]
[1752036094848,6.6177,151.09,151.06,2.4661854]
[1752036095350,9.0834854,151.1,151.06,9.0846854]
[1752036097351,6.6176,151.09,151.06,9.0846854]
[1752036097546,6.6176,151.09,151.05,6.6192]
[1752036097749,6.6176,151.09,151.06,2.4661854]
[1752036099252,6.618,151.08,151.06,2.4661854]
[1752036101249,9.0840854,151.09,151.06,2.4661854]
[1752036101452,9.0840854,151.09,151.06,9.0849854]
[1752036101651,2.4661854,151.09,151.06,2.4661854]
[1752036101852,6.618,151.08,151.06,2.4661854]
[1752036102646,9.0838854,151.09,151.06,2.4661854]
[1752036104147,6.6177,151.09,151.06,2.4661854]
[1752036104949,6.6177,151.09,151.05,6.6191]
[1752036105146,6.6177,151.09,151.06,2.4661854]
[1752036106959,9.0834854,151.1,151.07,2.4661854]
[1752036107450,9.0834854,151.1,151.07,9.0845854]
[1752036108157,6.6173,151.1,151.07,2.4661854]
[1752036108360,9.0834854,151.1,151.07,2.4661854]
[1752036108863,2.4661854,151.11,151.07,9.0841854]
[1752036110660,6.6174,151.1,151.07,9.0841854]
[1752036111158,6.6174,151.1,151.08,2.4661854]
[1752036113857,6.6174,151.1,151.07,2.4661854]
[1752036114953,6.6174,151.1,151.08,2.4661854]
[1752036116262,6.6176,151.09,151.08,2.4661854]
[1752036116465,2.4661854,151.12,151.07,2.4661854]
[1752036116654,8.3116953,151.11,151.07,2.4661854]
[1752036116859,2.4661854,151.11,151.07,2.4661854]
[1752036117059,6.6175,151.1,151.07,2.4661854]
[1752036119159,6.6168,151.11,151.09,2.4661854]
[1752036122570,6.6168,151.11,151.08,2.4661854]
[1752036123263,2.4661854,151.11,150.99,2.3546]
[1752036123464,2.4661854,151.11,151.07,2.4661854]
[1752036124367,6.6172,151.1,151.07,2.4661854]
[1752036124568,6.6172,151.1,151.06,2.46624303]
[1752036126467,6.6176,151.09,151.06,2.46624303]
[1752036129172,6.6176,151.09,151.06,9.08514303]
[1752036131276,6.6176,151.09,151.06,2.46624303]
[1752036134078,6.6176,151.09,151.06,9.08504303]
[1752036135077,6.6173,151.1,151.06,9.08504303]
[1752036135277,6.6173,151.1,151.07,2.46624305]
[1752036135479,2.46624305,151.11,151.06,9.08504305]
[1752036135776,8.31332013,151.1,151.06,9.08504305]
[1752036135976,6.6172,151.1,151.07,2.46624305]
[1752036138078,6.6172,151.1,151.06,6.6188]
[1752036138275,2.46624305,151.1,151.06,2.46624305]
[1752036138477,2.46624305,151.1,151.07,2.46624305]
[1752036138673,2.46624305,151.11,151.07,2.46624305]
[1752036138876,8.31538631,151.1,151.07,2.46624305]
[1752036139075,2.46624305,151.11,151.07,2.46624305]
[1752036139275,8.31538631,151.1,151.07,2.46624305]
[1752036139476,2.46624305,151.11,151.07,2.46624305]
[1752036139676,6.6176,151.09,151.07,2.46624305]
[1752036142880,6.6176,151.09,151.05,6.6192]
[1752036143076,9.26073853,151.13,151.07,2.46619237]
[1752036143381,13.979291,151.12,151.07,2.46619237]
[1752036143582,8.30730987,151.11,151.07,2.46619237]
[1752036143773,14.92470987,151.1,151.07,2.46619237]
[1752036143980,6.6174,151.1,151.07,2.46619237]
[1752036146179,6.6174,151.1,151.07,2.46595907]
[1752036146781,6.6174,151.1,151.08,2.46595907]
[1752036150386,9.27009219,151.14,151.08,2.46595907]
[1752036150587,2.46595907,151.12,151.08,2.46595907]
[1752036150787,8.32158821,151.11,151.08,2.46595907]
[1752036150983,6.6169,151.11,151.08,9.08395907]
[1752036153597,6.6169,151.11,151.08,2.46595907]
[1752036154097,6.6169,151.11,151.08,9.08395907]
[1752036154893,2.46595907,151.12,151.08,2.46595907]
[1752036155099,8.32445373,151.11,151.07,6.6182]
[1752036155294,2.46595907,151.12,151.08,2.46595907]
[1752036155495,8.3242811,151.11,151.08,2.46595907]
[1752036155696,8.3242811,151.1,151.08,2.46595907]
[1752036155898,6.6169,151.11,151.08,2.46595907]
[1752036156097,8.33289159,151.1,151.08,2.46595907]
[1752036156301,6.6169,151.11,151.08,2.46595907]
[1752036156501,8.33223211,151.1,151.08,2.46595907]
[1752036156802,6.6169,151.11,151.08,2.46595907]
[1752036157003,8.33159512,151.1,151.08,2.46595907]
[1752036157203,6.6169,151.11,151.08,2.46595907]
[1752036157397,14.94868355,151.1,151.08,2.46595907]
[1752036157598,6.6171,151.1,151.08,2.46595907]
[1752036160601,6.6176,151.09,151.06,6.6188]
[1752036160903,2.46595907,151.11,151.07,2.46595907]
[1752036161202,8.34071329,151.1,151.07,2.46595907]
[1752036161403,8.34071329,151.09,151.07,2.46595907]
[1752036161603,2.46595907,151.11,151.07,2.46595907]
[1752036161803,8.34056564,151.1,151.07,2.46595907]
[1752036162004,8.34056564,151.09,151.07,2.46595907]
[1752036162302,2.46595907,151.11,151.07,2.46595907]
[1752036162303,6.6172,151.1,151.07,2.46595907]
[1752036162505,8.3404282,151.09,151.07,2.46595907]
[1752036162704,6.6172,151.1,151.07,2.46595907]
[1752036162999,8.3404282,151.09,151.07,2.46595907]
[1752036163203,6.6172,151.1,151.07,2.46595907]
[1752036163402,8.34030214,151.09,151.07,2.46595907]
[1752036163596,6.6172,151.1,151.06,9.08475907]
[1752036163802,8.34030214,151.09,151.06,9.08475907]
[1752036164001,6.6172,151.1,151.06,9.08475907]
[1752036164205,8.34030214,151.09,151.06,9.08475907]
[1752036164506,6.6178,151.09,151.06,2.46595907]
[1752036166404,9.27360756,151.13,150.99,193.7546]
[1752036166405,2.46595907,151.07,150.99,2.3546]
[1752036166602,2.46595907,151.07,151.02,2.46595907]
[1752036166805,10.78630863,151.06,151.02,2.46595907]
[1752036166999,6.6193,151.05,151.02,9.08625907]
[1752036167204,6.6193,151.05,151.02,6.6203]
[1752036167805,6.6193,151.05,151.01,9.08685907]
[1752036168209,9.08525907,151.05,151.01,6.6209]
[1752036168405,9.08525907,151.05,151.01,9.08685907]
[1752036171511,9.08525907,151.05,151.01,6.6209]
[1752036171717,9.08525907,151.05,151.02,2.46595907]
[1752036172816,9.08525907,151.05,151.01,9.08685907]
[1752036173016,9.08525907,151.05,151.02,6.6205]
[1752036173216,9.08525907,151.05,151.02,9.08645907]
[1752036175816,6.6193,151.05,151.02,9.08645907]
[1752036177722,6.619,151.06,151.03,2.46595907]
[1752036178020,9.08495907,151.06,151.03,2.46595907]
[1752036178823,6.6193,151.05,151.03,2.46595907]
[1752036179023,6.6193,151.05,151.02,6.6205]
[1752036179220,6.6193,151.05,151.03,2.46595907]
[1752036179725,9.08495907,151.06,151.03,2.46595907]
[1752036180622,6.6194,151.05,151.03,2.46595907]
[1752036181224,6.6194,151.05,151.02,9.08645907]
[1752036185328,6.6194,151.05,151.02,2.46595907]
[1752036189534,6.6194,151.05,151.02,9.08655907]
[1752036196038,6.6194,151.05,151.02,6.6206]
[1752036196334,6.6195,151.05,151.02,2.46595907]
[1752036200140,6.6195,151.05,151.02,9.08655907]
[1752036201945,6.6195,151.05,151.02,6.6206]
[1752036202143,6.6195,151.05,151.02,9.08655907]
[1752036204137,12.44709805,151.09,150.95,18.56830507]
[1752036204340,2.46595907,151.02,150.98,2.46595907]
[1752036204545,2.46595907,151.02,150.93,2.3196]
[1752036204546,2.46595907,151.02,151.0,0.05101979]
[1752036204741,9.08695907,151.02,151.0,0.05101979]
[1752036204941,9.08695907,151.02,150.98,6.6221]
[1752036205142,9.08695907,151.02,150.98,9.08805907]
[1752036207948,9.08695907,151.02,150.98,6.6221]
[1752036208250,9.08695907,151.02,150.98,9.08805907]
[1752036208547,6.6211,151.01,150.98,6.6221]
[1752036208745,2.46595907,151.02,150.98,9.08805907]
[1752036209246,2.51230497,151.02,150.98,9.08805907]
[1752036209847,9.13310497,151.02,150.98,9.08805907]
[1752036212450,9.13310497,151.02,150.98,6.6221]
[1752036212650,9.13310497,151.02,150.98,9.08805907]
[1752036213053,9.13310497,151.02,150.99,6.6219]
[1752036214646,0.0463459,151.02,150.99,6.6219]
[1752036214848,2.51230497,151.02,150.99,9.08785907]
[1752036216453,9.13300497,151.02,150.99,9.08785907]
[1752036216852,6.6670459,151.02,150.99,9.08785907]
[1752036219754,6.6670459,151.02,150.99,6.6219]
[1752036219954,6.6670459,151.02,150.99,9.08785907]
[1752036220960,0.0463459,151.02,151.01,2.46595907]
[1752036221151,0.0463459,151.02,150.95,18.56830507]
[1752036221458,0.0463459,151.02,151.01,2.46595907]
[1752036221655,0.0463459,151.02,150.95,18.56830507]
[1752036221855,0.0463459,151.02,150.94,20.78990507]
[1752036222055,2.51230497,151.02,150.98,2.46595907]
[1752036222355,6.6671459,151.02,150.99,2.46595907]
[1752036222656,0.0463459,151.02,150.99,2.46595907]
[1752036223253,6.6671459,151.02,150.99,9.08785907]
[1752036223459,6.6671459,151.02,150.99,2.46595907]
[1752036224756,6.6671459,151.02,150.99,9.08785907]
[1752036226358,6.6671459,151.02,150.99,2.46595907]
[1752036227458,0.0463459,151.02,151.01,2.46595907]
[1752036227962,0.0463459,151.02,151.01,9.08705907]
[1752036228261,0.0463459,151.02,151.01,2.46595907]
[1752036228660,0.0463459,151.02,151.0,9.08725907]
[1752036228859,0.0463459,151.02,151.0,2.46595907]
[1752036229959,0.0463459,151.02,150.99,9.08745907]
[1752036230764,0.0463459,151.02,151.0,9.08735907]
[1752036234468,0.0463459,151.02,151.0,2.46595907]
[1752036236869,0.0463459,151.02,151.0,9.08735907]
[1752036237673,0.0463459,151.02,151.01,6.6211]
[1752036238170,0.0463459,151.02,151.01,9.08705907]
[1752036239570,0.0463459,151.02,151.01,2.46595907]
[1752036240572,0.0463459,151.02,151.01,9.08705907]
[1752036241376,0.0463459,151.02,151.01,2.46595907]
[1752036246575,0.0463459,151.02,151.01,9.08705907]
[1752036249878,2.46595907,151.06,151.01,17.35932347]
[1752036250078,6.62,151.04,151.02,10.73822347]
[1752036250277,8.5756899,151.03,151.01,9.08705907]
[1752036250476,6.62,151.04,151.02,8.27256516]
[1752036250679,16.84249114,151.03,151.01,9.08705907]
[1752036250879,16.84249114,151.03,150.94,2.2216]
[1752036251079,2.46595907,151.05,150.98,2.46595907]
[1752036251080,25.92935021,151.02,150.98,2.46595907]
[1752036251281,8.56992598,151.01,150.98,2.46595907]
[1752036251580,16.84249114,151.0,150.99,9.08785907]
[1752036254178,8.27256516,151.0,150.99,9.08785907]
[1752036255881,8.27256516,151.0,150.99,2.46595907]
[1752036256584,8.27256516,151.0,150.99,9.08785907]
[1752036256882,8.27256516,151.0,150.99,2.46595907]
[1752036258483,8.27256516,151.0,150.99,9.08785907]
[1752036258682,8.27256516,151.0,150.99,6.6219]
[1752036258982,8.27256516,151.0,150.99,2.46595907]
[1752036260976,8.27256516,151.0,150.98,6.622]
[1752036261183,8.27256516,150.99,150.98,4.12401804]
[1752036261383,8.27256516,150.99,150.98,6.58997711]
[1752036264690,8.27256516,150.99,150.98,2.46595907]
[1752036265587,8.27256516,150.99,150.98,9.08795907]
[1752036267086,6.66294509,151.01,150.98,9.08795907]
[1752036267282,6.66294509,151.01,150.99,2.46595907]
[1752036270894,0.04184509,151.01,150.99,9.08775907]
[1752036271293,0.04184509,151.01,150.99,2.46595907]
[1752036271893,6.66304509,151.01,150.99,2.46595907]
[1752036272995,0.04184509,151.01,150.99,2.46595907]
[1752036273795,0.04184509,151.01,150.99,9.08765907]
[1752036276598,0.04184509,151.01,150.99,9.09030688]
[1752036280598,0.04184509,151.01,150.99,6.6217]
[1752036280898,0.04184509,151.01,150.99,9.09030688]
[1752036281498,6.66294509,151.01,150.99,2.46860688]
[1752036281691,2.46860688,151.0,150.97,0.05092869]
[1752036281895,2.46860688,151.0,150.94,2.46860688]
[1752036282098,9.09281588,150.98,150.94,9.09401588]
[1752036283200,9.14129654,150.98,150.94,9.09401588]
[1752036283402,9.14129654,150.98,150.95,2.47021588]
[1752036284292,0.04848066,150.98,150.96,2.47021588]
[1752036284497,0.04848066,150.98,150.97,2.47021588]
[1752036284698,8.58720134,150.98,150.97,2.47021588]
[1752036285000,11.05741722,150.98,150.95,2.47021588]
[1752036285202,2.51869654,150.98,150.95,2.47021588]
[1752036285695,2.51869654,150.98,150.94,2.47021588]
[1752036286293,2.47021588,150.97,150.93,2.47021588]
[1752036287298,6.6235,150.96,150.94,6.6241]
[1752036288605,9.09301588,150.97,150.94,6.6241]
[1752036288902,2.51869654,150.98,150.95,6.6237]
[1752036289103,9.14129654,150.98,150.95,6.6237]
[1752036289806,6.6229,150.97,150.95,6.6237]
[1752036290707,6.6229,150.97,150.94,9.09411588]
[1752036291307,6.6229,150.97,150.94,6.6239]
[1752036291506,6.6229,150.97,150.94,9.09411588]
[1752036291704,6.6229,150.97,150.94,2.47021588]
[1752036292006,9.09311588,150.97,150.93,2.47021588]
[1752036292206,6.6234,150.96,150.93,9.09451588]
[1752036292607,6.67161663,150.96,150.93,9.09451588]
[1752036293306,0.04821663,150.96,150.94,9.09421588]
[1752036294008,0.04821663,150.96,150.95,6.6237]
[1752036294205,0.04821663,150.96,150.95,9.09391588]
[1752036298411,0.04821663,150.96,150.95,6.6237]
[1752036298711,0.04821663,150.96,150.95,9.09391588]
[1752036299910,0.04821663,150.96,150.88,571.84]
[1752036299911,0.04821663,150.96,150.94,6.6239]
[1752036300210,0.04821663,150.96,150.94,9.09411588]
[1752036301312,0.04821663,150.96,150.94,6.6239]
[1752036302614,0.04821663,150.96,150.95,6.6237]
[1752036303710,0.04821663,150.96,150.95,9.09391588]
[1752036304616,0.04821663,150.96,150.88,571.84]
[1752036304813,0.04821663,150.96,150.94,2.47021588]
[1752036306516,0.04821663,150.96,150.95,6.6237]
[1752036307216,0.04821663,150.96,150.95,9.09391588]
[1752036310213,0.04821663,150.96,150.95,6.6237]
[1752036319429,0.04821663,150.96,150.95,9.09391588]
[1752036320535,0.04821663,150.96,150.95,6.6237]
[1752036329541,0.04821663,150.96,150.95,9.09364866]
[1752036329742,2.46994866,151.01,150.97,6.6226]
[1752036329939,8.51450689,151.0,150.97,6.6226]
[1752036330241,8.51450689,150.99,150.97,6.6226]
[1752036330436,6.6217,151.0,150.97,6.6226]
[1752036330741,8.5052551,150.99,150.97,6.6226]
[1752036330941,6.6217,151.0,150.97,6.6226]
[1752036330942,6.66457855,151.0,150.97,6.6226]
[1752036331141,8.50526023,150.99,150.97,6.6226]
[1752036331342,6.66457855,151.0,150.97,9.09181398]
[1752036331539,8.50524014,150.99,150.97,9.09181398]
[1752036331733,6.66457855,151.0,150.97,9.09181398]
[1752036331942,8.5053193,150.99,150.97,9.09181398]
[1752036332142,6.66457855,151.0,150.97,9.09181398]
[1752036332443,8.50436329,150.99,150.97,9.09181398]
[1752036332640,6.66457855,151.0,150.97,9.09181398]
[1752036332842,8.50502057,150.99,150.97,9.09181398]
[1752036333043,6.622,150.99,150.97,6.6226]
[1752036333843,8.50410237,150.98,150.97,6.6226]
[1752036343854,15.12670237,150.98,150.87,4.4152]
[1752036344054,6.6226,150.98,150.94,2.469352]
[1752036344452,6.66634565,150.98,150.94,2.469352]
[1752036345247,9.13569765,150.98,150.94,2.469352]
[1752036345555,9.13569765,150.98,150.96,6.6232]
[1752036348356,2.51309765,150.98,150.96,6.6232]
[1752036349152,0.04374565,150.98,150.96,6.6232]
[1752036356865,9.13549765,150.98,150.95,6.6235]
[1752036357066,8.48771085,150.97,150.95,6.66718627]
[1752036357363,9.13549765,150.98,150.95,6.66718627]
[1752036357566,8.48489561,150.97,150.95,6.66718627]
[1752036357774,9.13549765,150.98,150.95,6.66718627]
[1752036358064,8.48489561,150.97,150.95,6.66718627]
[1752036358365,9.13549765,150.98,150.95,6.66718627]
[1752036358565,8.48468567,150.97,150.95,6.66718627]
[1752036358764,9.13549765,150.98,150.95,6.66718627]
[1752036358965,8.48468567,150.97,150.95,6.66718627]
[1752036359162,9.13549765,150.98,150.95,6.66718627]
[1752036359468,8.48448772,150.97,150.95,6.66718627]
[1752036359770,9.13549765,150.98,150.95,6.66718627]
[1752036360064,8.48447392,150.97,150.95,6.66718627]
[1752036360264,9.13549765,150.98,150.95,6.66718627]
[1752036360464,8.48307891,150.97,150.95,6.66718627]
[1752036360666,6.6228,150.97,150.95,6.66718627]
[1752036364869,9.13638798,150.98,150.95,6.66718627]
[1752036365167,8.48479756,150.97,150.95,6.66718627]
[1752036365469,9.13638798,150.98,150.95,6.66718627]
[1752036365771,8.48296679,150.97,150.95,6.66718627]
[1752036366070,9.13638798,150.98,150.95,6.66718627]
[1752036366368,8.48281796,150.97,150.95,6.66718627]
[1752036366566,9.13638798,150.98,150.95,6.66718627]
[1752036366864,6.66634565,150.98,150.95,9.1372286]
[1752036367069,6.66634565,150.98,150.96,6.6232]
[1752036370273,6.66634565,150.98,150.95,9.1372286]
[1752036374173,6.66634565,150.98,150.95,6.66718627]
[1752036375376,9.13634387,150.98,150.95,6.66718627]
[1752036377272,6.66634565,150.98,150.95,6.66718627]
[1752036377473,9.13634387,150.98,150.95,6.66718627]
[1752036378176,6.66634565,150.98,150.95,6.66718627]
[1752036378374,9.13634387,150.98,150.95,6.66718627]
[1752036379678,9.13634387,150.98,150.96,6.6232]
[1752036380578,9.13634387,150.98,150.95,6.66718627]
[1752036381178,9.13634387,150.98,150.96,6.6231]
[1752036381777,9.13634387,150.98,150.95,6.66728627]
[1752036386884,6.66634565,150.98,150.95,6.66728627]
[1752036389891,8.48207797,150.97,150.95,6.66728627]
[1752036390091,6.66634565,150.98,150.95,6.66728627]
[1752036390291,8.48202532,150.97,150.95,6.66728627]
[1752036390492,6.66634565,150.98,150.95,6.66728627]
[1752036390696,8.48202561,150.97,150.95,6.66728627]
[1752036390992,6.66634565,150.98,150.95,6.66728627]
[1752036391192,8.48202561,150.97,150.95,6.66728627]
[1752036391393,6.66634565,150.98,150.95,6.66728627]
[1752036391592,8.48214614,150.97,150.95,6.66728627]
[1752036391891,6.66634565,150.98,150.95,6.66728627]
[1752036392092,8.48214614,150.97,150.95,6.66728627]
[1752036392391,6.66634565,150.98,150.95,6.66728627]
[1752036392592,8.4821071,150.97,150.95,6.66728627]
[1752036392794,6.66634565,150.98,150.95,6.66728627]
[1752036392993,8.4821071,150.97,150.95,6.66728627]
[1752036393195,6.66634565,150.98,150.95,6.66728627]
[1752036393394,8.48207262,150.97,150.95,6.66728627]
[1752036393586,6.66634565,150.98,150.95,6.66728627]
[1752036393788,8.48207262,150.97,150.95,6.66728627]
[1752036393986,6.66634565,150.98,150.95,6.66728627]
[1752036394193,8.48207262,150.97,150.95,6.66728627]
[1752036394394,6.66634565,150.98,150.95,6.66728627]
[1752036394591,8.48238008,150.97,150.95,6.66728627]
[1752036394791,6.66634565,150.98,150.95,6.66728627]
[1752036394990,8.48238008,150.97,150.95,6.66728627]
[1752036395193,6.66634565,150.98,150.95,6.66728627]
[1752036395393,8.48219202,150.97,150.95,6.66728627]
[1752036395593,6.66634565,150.98,150.95,6.66728627]
[1752036395793,8.48219202,150.97,150.95,6.66728627]
[1752036395991,6.66634565,150.98,150.95,6.66728627]
[1752036396200,8.48219202,150.97,150.95,6.66728627]
[1752036396401,6.66634565,150.98,150.95,6.66728627]
[1752036396602,8.48201011,150.97,150.95,6.66728627]
[1752036396802,6.66634565,150.98,150.95,6.66728627]
[1752036397003,8.48201011,150.97,150.95,6.66728627]
[1752036397202,6.66634565,150.98,150.95,6.66728627]
[1752036397403,8.48199981,150.97,150.95,6.66728627]
[1752036397603,6.66634565,150.98,150.95,6.66728627]
[1752036397807,8.48178891,150.97,150.95,6.66728627]
[1752036398008,6.66634565,150.98,150.95,6.66728627]
[1752036398305,8.48180328,150.97,150.95,6.66728627]
[1752036398507,6.66634565,150.98,150.95,6.66728627]
[1752036398699,8.48178445,150.97,150.95,6.66728627]
[1752036398903,6.66634565,150.98,150.95,6.66728627]
[1752036399202,8.4811287,150.97,150.95,6.66728627]
[1752036399503,6.66634565,150.98,150.95,6.66728627]
[1752036399703,8.48079682,150.97,150.95,6.66728627]
[1752036400001,6.66634565,150.98,150.95,6.66728627]
[1752036400198,8.480435,150.97,150.95,6.66728627]
[1752036400404,6.66634565,150.98,150.95,6.66728627]
[1752036400604,8.48042283,150.97,150.95,6.66728627]
[1752036400904,6.66634565,150.98,150.95,6.66728627]
[1752036401098,8.4803304,150.97,150.95,6.66728627]
[1752036401300,6.66634565,150.98,150.95,6.66728627]
[1752036401496,15.10324364,150.97,150.95,6.66728627]
[1752036401696,6.6229,150.97,150.95,6.66728627]
[1752036401901,6.6233,150.96,150.95,0.04368627]
[1752036402103,15.10303264,150.96,150.91,2.46999822]
[1752036402309,9.09410769,150.96,150.92,2.47080769]